fUSD/lending_fUSD_20250205
["ID","MTS","AMOUNT","RATE_DAILY","PERIOD"]
[351736908,1738771839551,-500.0,8.972e-05,2]
[351736910,1738771839563,-500.0,8.972e-05,2]
[351736912,1738771839573,-500.0,8.972e-05,2]
[351736914,1738771839582,-574.39,8.972e-05,2]
[351736916,1738771839593,-500.0,8.972e-05,2]
[351736918,1738771839603,-500.0,8.972e-05,2]
[351736920,1738771839612,-500.0,8.972e-05,2]
[351736922,1738771839623,-503.26842832,8.972e-05,2]
[351736924,1738771839632,-554.25,8.972e-05,2]
[351736926,1738771839642,-500.0,8.972e-05,2]
[351736928,1738771839653,-500.0,8.972e-05,2]
[351736930,1738771839664,-500.0,8.972e-05,2]
[351736932,1738771839674,-436.60273276,8.972e-05,2]
[351736934,1738771839685,-500.0,8.972e-05,2]
[351736936,1738771839695,-604.26,8.972e-05,2]
[351736938,1738771839705,-228.95984082,8.972e-05,2]
[351736940,1738771839715,-500.0,8.972e-05,2]
[351736942,1738771839725,-500.0,8.972e-05,2]
[351736944,1738771839734,-500.0,8.972e-05,2]
[351736946,1738771839744,-500.0,8.972e-05,2]
[351736948,1738771839754,-1351.66,8.972e-05,2]
[351736950,1738771839763,-500.0,8.972e-05,2]
[351736952,1738771839773,-500.0,8.972e-05,2]
[351736954,1738771839783,-500.0,8.972e-05,2]
[351736956,1738771839793,-500.0,8.972e-05,2]
[351736958,1738771839806,-492.70566829,8.972e-05,2]
[351736960,1738771839818,-500.0,8.972e-05,2]
[351736962,1738771839827,-500.0,8.972e-05,2]
[351736964,1738771839837,-794.15,8.972e-05,2]
[351736966,1738771839846,-500.0,8.972e-05,2]
[351736968,1738771839856,-500.0,8.972e-05,2]
[351736970,1738771839865,-500.0,8.972e-05,2]
[351736972,1738771839875,-500.0,8.972e-05,2]
[351736974,1738771839884,-500.0,8.972e-05,2]
[351736976,1738771839894,-500.89665262,8.972e-05,2]
[351736978,1738771839903,-500.0,8.972e-05,2]
[351736980,1738771839913,-500.0,8.972e-05,2]
[351736982,1738771839923,-500.0,8.972e-05,2]
[351736984,1738771839932,-500.0,8.972e-05,2]
[351736986,1738771839941,-500.0,8.972e-05,2]
[351736992,1738771839950,-397.45152214,8.972e-05,2]
[351736994,1738771840010,-500.0,8.972e-05,2]
[351736996,1738771840019,-500.0,8.972e-05,2]
[351736998,1738771840029,-500.0,8.972e-05,2]
[351737000,1738771840039,-500.0,8.972e-05,2]
[351737003,1738771840050,-500.0,8.972e-05,2]
[351737005,1738771840066,-995.15,8.972e-05,2]
[351737007,1738771840079,-500.0,8.972e-05,2]
[351737009,1738771840090,-500.0,8.972e-05,2]
[351737011,1738771840100,-500.0,8.972e-05,2]
[351737013,1738771840112,-500.0,8.972e-05,2]
[351737015,1738771840122,-582.22519759,8.972e-05,2]
[351737017,1738771840131,-433.46,8.972e-05,2]
[351737019,1738771840140,-500.0,8.972e-05,2]
[351737021,1738771840150,-500.0,8.972e-05,2]
[351737023,1738771840160,-500.62964055,8.972e-05,2]
[351737025,1738771840170,-502.5936759,8.972e-05,2]
[351737026,1738771840180,-500.0,8.972e-05,2]
[351737029,1738771840189,-500.0,8.972e-05,2]
[351737032,1738771840199,-155.14625808,8.972e-05,2]
[351737035,1738771840211,-503.97179342,8.972e-05,2]
[351737037,1738771840220,-532.91,8.972e-05,2]
[351737038,1738771840230,-500.0,8.972e-05,2]
[351737039,1738771840239,-503.19948657,8.972e-05,2]
[351737040,1738771840248,-500.0,8.972e-05,2]
[351737042,1738771840258,-502.40463909,8.972e-05,2]
[351737043,1738771840267,-509.04,8.972e-05,2]
[351737045,1738771840277,-500.0,8.972e-05,2]
[351737047,1738771840286,-500.0,8.972e-05,2]
[351737049,1738771840297,-500.71437101,8.972e-05,2]
[351737051,1738771840309,-500.0,8.972e-05,2]
[351737053,1738771840319,-500.0,8.972e-05,2]
[351737055,1738771840328,-500.0,8.972e-05,2]
[351737057,1738771840339,-500.0,8.972e-05,2]
[351737059,1738771840348,-500.0,8.972e-05,2]
[351737061,1738771840358,-500.0,8.972e-05,2]
[351737063,1738771840369,-500.0,8.972e-05,2]
[351737065,1738771840383,-541.3,8.972e-05,2]
[351737067,1738771840393,-1529.77,8.972e-05,2]
[351737069,1738771840403,-508.70209635,8.972e-05,2]
[351737071,1738771840415,-500.0,8.972e-05,2]
[351737073,1738771840426,-608.19,8.972e-05,2]
[351737075,1738771840436,-500.0,8.972e-05,2]
[351737077,1738771840446,-500.0,8.972e-05,2]
[351737079,1738771840458,-500.0,8.972e-05,2]
[351737081,1738771840469,-500.0,8.972e-05,2]
[351737083,1738771840478,-500.0,8.972e-05,2]
[351737085,1738771840488,-500.0,8.972e-05,2]
[351737088,1738771840498,-176.22818964,8.972e-05,2]
[351737089,1738771840508,-500.0,8.972e-05,2]
[351737092,1738771840518,-500.0,8.972e-05,2]
[351737093,1738771840527,-587.28,8.972e-05,2]
[351737095,1738771840537,-500.0,8.972e-05,2]
[351737097,1738771840546,-955.06,8.972e-05,2]
[351737099,1738771840557,-500.0,8.972e-05,2]
[351737101,1738771840567,-35539.403,8.973e-05,2]
[351737103,1738771840576,-156.81,8.989e-05,2]
[351737105,1738771840586,-303.3317,9.108e-05,2]
[351737107,1738771840596,-500.0,9.108e-05,2]
[351737109,1738771840606,-637.58,9.108e-05,2]
[351737111,1738771840616,-677.45,9.108e-05,2]
[351737113,1738771840627,-500.0,9.108e-05,2]
[351737116,1738771840638,-322.336595,9.108e-05,2]
[351737118,1738771840648,-500.0,9.108e-05,2]
[351737120,1738771840658,-500.0,9.108e-05,2]
[351737122,1738771840669,-500.0,9.108e-05,2]
[351737124,1738771840679,-927.41,9.108e-05,2]
[351737126,1738771840688,-764.98,9.108e-05,2]
[351737127,1738771840697,-785.56,9.108e-05,2]
[351737130,1738771840707,-1187.93,9.108e-05,2]
[351737132,1738771840717,-1413.76,9.108e-05,2]
[351737134,1738771840727,-695.95,9.108e-05,2]
[351737136,1738771840737,-500.0,9.108e-05,2]
[351737138,1738771840747,-1788.75,9.108e-05,2]
[351737140,1738771840756,-1194.3,9.108e-05,2]
[351737142,1738771840767,-500.0,9.108e-05,2]
[351737144,1738771840777,-500.0,9.108e-05,2]
[351737146,1738771840786,-500.0,9.108e-05,2]
[351737148,1738771840795,-933.46,9.108e-05,2]
[351737150,1738771840806,-500.0,9.108e-05,2]
[351737152,1738771840817,-500.0,9.108e-05,2]
[351737154,1738771840827,-277.77,9.108e-05,2]
[351737156,1738771840837,-500.0,9.108e-05,2]
[351737158,1738771840846,-500.0,9.108e-05,2]
[351737160,1738771840856,-500.0,9.108e-05,2]
[351737162,1738771840865,-500.0,9.108e-05,2]
[351737164,1738771840875,-500.0,9.108e-05,2]
[351737166,1738771840884,-1831.77,9.108e-05,2]
[351737168,1738771840894,-500.0,9.108e-05,2]
[351737170,1738771840903,-500.0,9.108e-05,2]
[351737171,1738771840912,-500.0,9.108e-05,2]
[351737173,1738771840922,-500.0,9.108e-05,2]
[351737175,1738771840934,-500.0,9.108e-05,2]
[351737177,1738771840943,-913.2,9.108e-05,2]
[351737179,1738771840953,-531.73,9.108e-05,2]
[351737181,1738771840962,-500.0,9.108e-05,2]
[351737183,1738771840971,-500.0,9.108e-05,2]
[351737185,1738771840981,-500.0,9.108e-05,2]
[351737187,1738771840991,-500.0,9.108e-05,2]
[351737189,1738771841000,-367.7,9.108e-05,2]
[351737191,1738771841009,-500.0,9.108e-05,2]
[351737193,1738771841019,-500.0,9.108e-05,2]
[351737195,1738771841029,-500.0,9.108e-05,2]
[351737197,1738771841038,-591.54,9.108e-05,2]
[351737199,1738771841048,-3174.66,9.108e-05,2]
[351737201,1738771841060,-500.0,9.108e-05,2]
[351737203,1738771841070,-500.0,9.108e-05,2]
[351737205,1738771841079,-973.6,9.108e-05,2]
[351737206,1738771841088,-558.48,9.108e-05,2]
[351737208,1738771841098,-500.0,9.108e-05,2]
[351737210,1738771841107,-1294.06,9.108e-05,2]
[351737212,1738771841117,-180.20315349,9.108e-05,2]
[351737214,1738771841127,-500.0,9.108e-05,2]
[351737216,1738771841136,-1258.85,9.108e-05,2]
[351737218,1738771841146,-264.41,9.108e-05,2]
[351737220,1738771841155,-463.7,9.109e-05,2]
[351737222,1738771841164,-500.0,9.109e-05,2]
[351737224,1738771841173,-589.86,9.109e-05,2]
[351737226,1738771841183,-299.07,9.109e-05,2]
[351737228,1738771841193,-630.69,9.109e-05,2]
[351737230,1738771841201,-500.0,9.109e-05,2]
[351737232,1738771841211,-500.0,9.109e-05,2]
[351737234,1738771841220,-500.0,9.109e-05,2]
[351737236,1738771841229,-500.0,9.109e-05,2]
[351737238,1738771841238,-484.44,9.109e-05,2]
[351737240,1738771841247,-500.0,9.109e-05,2]
[351737242,1738771841256,-444.72,9.109e-05,2]
[351737243,1738771841265,-500.0,9.109e-05,2]
[351737245,1738771841275,-520.42,9.109e-05,2]
[351737247,1738771841284,-156.03,9.109e-05,2]
[351737249,1738771841294,-547.44,9.109e-05,2]
[351737251,1738771841303,-500.0,9.109e-05,2]
[351737253,1738771841316,-500.0,9.109e-05,2]
[351737255,1738771841325,-315.35,9.109e-05,2]
[351737257,1738771841335,-500.0,9.109e-05,2]
[351737259,1738771841346,-500.0,9.109e-05,2]
[351737261,1738771841355,-500.0,9.109e-05,2]
[351737263,1738771841368,-158.6,9.109e-05,2]
[351737265,1738771841378,-475.96,9.109e-05,2]
[351737267,1738771841387,-249.73,9.109e-05,2]
[351737269,1738771841397,-500.0,9.109e-05,2]
[351737271,1738771841407,-337.9,9.109e-05,2]
[351737273,1738771841425,-500.0,9.109e-05,2]
[351737275,1738771841443,-500.0,9.109e-05,2]
[351737277,1738771841457,-286.76,9.109e-05,2]
[351737279,1738771841469,-329.3,9.109e-05,2]
[351737281,1738771841483,-500.0,9.109e-05,2]
[351737283,1738771841491,-500.0,9.109e-05,2]
[351737285,1738771841502,-500.0,9.109e-05,2]
[351737287,1738771841513,-500.0,9.109e-05,2]
[351737289,1738771841523,-500.0,9.109e-05,2]
[351737291,1738771841532,-362.75,9.109e-05,2]
[351737293,1738771841542,-500.0,9.109e-05,2]
[351737295,1738771841551,-577.12,9.109e-05,2]
[351737296,1738771841565,-500.0,9.109e-05,2]
[351737299,1738771841575,-500.0,9.109e-05,2]
[351737300,1738771841585,-500.0,9.109e-05,2]
[351737302,1738771841595,-484.82,9.109e-05,2]
[351737304,1738771841605,-500.0,9.109e-05,2]
[351737306,1738771841615,-417.31611719,9.109e-05,2]
[351737308,1738771841625,-500.0,9.109e-05,2]
[351737310,1738771841635,-500.0,9.109e-05,2]
[351737312,1738771841646,-500.0,9.109e-05,2]
[351737315,1738771841656,-500.0,9.109e-05,2]
[351737316,1738771841665,-500.0,9.109e-05,2]
[351737318,1738771841678,-500.0,9.109e-05,2]
[351737320,1738771841688,-500.0,9.109e-05,2]
[351737322,1738771841698,-500.0,9.109e-05,2]
[351737324,1738771841708,-500.0,9.109e-05,2]
[351737326,1738771841718,-500.3,9.109e-05,2]
[351737328,1738771841727,-500.0,9.109e-05,2]
[351737330,1738771841737,-500.0,9.109e-05,2]
[351737332,1738771841747,-500.0,9.109e-05,2]
[351737334,1738771841756,-500.0,9.109e-05,2]
[351737336,1738771841766,-500.0,9.109e-05,2]
[351737338,1738771841776,-500.0,9.109e-05,2]
[351737340,1738771841786,-500.0,9.109e-05,2]
[351737342,1738771841796,-500.0,9.109e-05,2]
[351737344,1738771841811,-500.0,9.109e-05,2]
[351737346,1738771841825,-500.0,9.109e-05,2]
[351737347,1738771841835,-500.0,9.109e-05,2]
[351737349,1738771841845,-500.0,9.109e-05,2]
[351737351,1738771841855,-500.0,9.109e-05,2]
[351737353,1738771841865,-500.0,9.109e-05,2]
[351737355,1738771841875,-500.0,9.109e-05,2]
[351737357,1738771841885,-500.0,9.109e-05,2]
[351737359,1738771841895,-500.0,9.109e-05,2]
[351737361,1738771841905,-500.0,9.109e-05,2]
[351737363,1738771841915,-500.0,9.109e-05,2]
[351737365,1738771841925,-500.0,9.109e-05,2]
[351737367,1738771841934,-500.0,9.109e-05,2]
[351737369,1738771841944,-500.0,9.109e-05,2]
[351737371,1738771841953,-500.0,9.109e-05,2]
[351737373,1738771841964,-500.0,9.109e-05,2]
[351737375,1738771841974,-500.0,9.109e-05,2]
[351737377,1738771841983,-547.58,9.109e-05,2]
[351737379,1738771841993,-500.0,9.109e-05,2]
[351737381,1738771842002,-500.0,9.109e-05,2]
[351737383,1738771842012,-500.0,9.109e-05,2]
[351737385,1738771842022,-500.0,9.109e-05,2]
[351737387,1738771842032,-645.32,9.109e-05,2]
[351737389,1738771842041,-500.0,9.109e-05,2]
[351737391,1738771842050,-500.0,9.109e-05,2]
[351737392,1738771842066,-500.0,9.109e-05,2]
[351737395,1738771842076,-500.0,9.109e-05,2]
[351737397,1738771842086,-500.0,9.109e-05,2]
[351737399,1738771842096,-500.0,9.109e-05,2]
[351737401,1738771842106,-500.0,9.109e-05,2]
[351737403,1738771842115,-500.0,9.109e-05,2]
[351737405,1738771842125,-500.0,9.109e-05,2]
[351737407,1738771842134,-500.0,9.109e-05,2]
[351737408,1738771842143,-500.0,9.109e-05,2]
[351737410,1738771842152,-500.0,9.109e-05,2]
[351737412,1738771842162,-686.43,9.109e-05,2]
[351737414,1738771842171,-529.82,9.109e-05,2]
[351737416,1738771842180,-500.0,9.109e-05,2]
[351737418,1738771842190,-500.0,9.109e-05,2]
[351737420,1738771842200,-500.0,9.109e-05,2]
[351737422,1738771842210,-310.58,9.109e-05,2]
[351737424,1738771842219,-575.7,9.109e-05,2]
[351737426,1738771842229,-500.0,9.109e-05,2]
[351737428,1738771842238,-500.0,9.109e-05,2]
[351737430,1738771842248,-500.0,9.109e-05,2]
[351737432,1738771842258,-500.0,9.109e-05,2]
[351737434,1738771842267,-591.06,9.109e-05,2]
[351737436,1738771842277,-321.43,9.109e-05,2]
[351737438,1738771842286,-500.0,9.109e-05,2]
[351737440,1738771842295,-500.0,9.109e-05,2]
[351737442,1738771842306,-500.0,9.109e-05,2]
[351737444,1738771842318,-500.0,9.109e-05,2]
[351737446,1738771842327,-500.0,9.109e-05,2]
[351737448,1738771842337,-500.0,9.109e-05,2]
[351737449,1738771842346,-500.0,9.109e-05,2]
[351737452,1738771842356,-216.71,9.109e-05,2]
[351737453,1738771842369,-885.56,9.109e-05,2]
[351737455,1738771842378,-500.0,9.109e-05,2]
[351737457,1738771842388,-500.0,9.109e-05,2]
[351737459,1738771842397,-630.28,9.109e-05,2]
[351737461,1738771842408,-500.0,9.109e-05,2]
[351737463,1738771842417,-500.0,9.109e-05,2]
[351737465,1738771842427,-500.0,9.109e-05,2]
[351737467,1738771842437,-500.0,9.109e-05,2]
[351737469,1738771842446,-500.0,9.109e-05,2]
[351737471,1738771842458,-500.0,9.109e-05,2]
[351737473,1738771842467,-565.1,9.109e-05,2]
[351737474,1738771842478,-500.0,9.109e-05,2]
[351737475,1738771842487,-500.0,9.109e-05,2]
[351737476,1738771842496,-500.0,9.109e-05,2]
[351737477,1738771842507,-500.0,9.109e-05,2]
[351737478,1738771842516,-500.0,9.109e-05,2]
[351737479,1738771842526,-500.0,9.109e-05,2]
[351737480,1738771842535,-500.0,9.109e-05,2]
[351737481,1738771842544,-518.57,9.109e-05,2]
[351737482,1738771842555,-534.28,9.109e-05,2]
[351737483,1738771842568,-516.18,9.109e-05,2]
[351737484,1738771842578,-525.08,9.109e-05,2]
[351737485,1738771842587,-1412.21,9.109e-05,2]
[351737486,1738771842597,-617.74,9.109e-05,2]
[351737487,1738771842606,-461.22,9.109e-05,2]
[351737488,1738771842616,-500.0,9.109e-05,2]
[351737489,1738771842625,-500.0,9.109e-05,2]
[351737490,1738771842635,-332.91,9.109e-05,2]
[351737491,1738771842645,-500.0,9.109e-05,2]
[351737492,1738771842655,-325.4,9.109e-05,2]
[351737493,1738771842665,-500.0,9.109e-05,2]
[351737494,1738771842674,-500.0,9.109e-05,2]
[351737495,1738771842684,-1263.94,9.109e-05,2]
[351737496,1738771842694,-500.0,9.109e-05,2]
[351737497,1738771842704,-873.98,9.109e-05,2]
[351737498,1738771842713,-500.0,9.109e-05,2]
[351737499,1738771842724,-500.0,9.109e-05,2]
[351737500,1738771842734,-500.0,9.109e-05,2]
[351737501,1738771842743,-500.0,9.109e-05,2]
[351737502,1738771842753,-500.0,9.109e-05,2]
[351737504,1738771842762,-2767.25,9.109e-05,2]
[351737506,1738771842772,-252.13,9.109e-05,2]
[351737508,1738771842782,-287.17,9.109e-05,2]
[351737510,1738771842791,-475.56,9.109e-05,2]
[351737512,1738771842801,-500.0,9.109e-05,2]
[351737514,1738771842814,-480.61,9.109e-05,2]
[351737516,1738771842823,-1351.66,9.109e-05,2]
[351737518,1738771842832,-794.15,9.109e-05,2]
[351737520,1738771842842,-500.0,9.109e-05,2]
[351737521,1738771842851,-500.0,9.109e-05,2]
[351737522,1738771842861,-500.0,9.109e-05,2]
[351737523,1738771842871,-500.0,9.109e-05,2]
[351737524,1738771842880,-995.15,9.109e-05,2]
[351737525,1738771842890,-423.68,9.109e-05,2]
[351737526,1738771842900,-500.0,9.109e-05,2]
[351737527,1738771842909,-500.0,9.109e-05,2]
[351737528,1738771842919,-509.04,9.109e-05,2]
[351737529,1738771842929,-541.3,9.109e-05,2]
[351737530,1738771842939,-1529.77,9.109e-05,2]
[351737531,1738771842949,-608.19,9.109e-05,2]
[351737532,1738771842958,-500.0,9.109e-05,2]
[351737533,1738771842968,-500.0,9.109e-05,2]
[351737534,1738771842978,-587.28,9.109e-05,2]
[351737535,1738771842988,-500.0,9.109e-05,2]
[351737536,1738771842998,-955.06,9.109e-05,2]
[351737537,1738771843007,-303.3317,9.245e-05,2]
[351737538,1738771843017,-500.0,9.245e-05,2]
[351737540,1738771843027,-637.58,9.245e-05,2]
[351737541,1738771843036,-677.45,9.245e-05,2]
[351737543,1738771843046,-500.0,9.245e-05,2]
[351737545,1738771843057,-322.336595,9.245e-05,2]
[351737547,1738771843068,-500.0,9.245e-05,2]
[351737549,1738771843078,-500.0,9.245e-05,2]
[351737550,1738771843088,-500.0,9.245e-05,2]
[351737551,1738771843098,-927.41,9.245e-05,2]
[351737552,1738771843108,-764.98,9.245e-05,2]
[351737553,1738771843118,-785.56,9.245e-05,2]
[351737554,1738771843128,-1187.93,9.245e-05,2]
[351737555,1738771843138,-1413.76,9.245e-05,2]
[351737556,1738771843148,-695.95,9.245e-05,2]
[351737557,1738771843158,-190.76,9.245e-05,2]
[351737558,1738771843168,-1788.75,9.245e-05,2]
[351737560,1738771843178,-1194.3,9.245e-05,2]
[351737562,1738771843189,-500.0,9.245e-05,2]
[351737563,1738771843199,-234.01,9.245e-05,2]
[351737565,1738771843210,-500.0,9.245e-05,2]
[351737568,1738771843220,-933.46,9.245e-05,2]
[351737570,1738771843230,-500.0,9.245e-05,2]
[351737573,1738771843240,-500.0,9.245e-05,2]
[351737575,1738771843250,-500.0,9.245e-05,2]
[351737577,1738771843261,-500.0,9.245e-05,2]
[351737579,1738771843271,-501.02,9.245e-05,2]
[351737581,1738771843290,-500.0,9.245e-05,2]
[351737582,1738771843304,-500.0,9.245e-05,2]
[351737583,1738771843321,-1831.77,9.245e-05,2]
[351737584,1738771843332,-500.0,9.245e-05,2]
[351737585,1738771843344,-500.0,9.245e-05,2]
[351737586,1738771843354,-500.0,9.245e-05,2]
[351737587,1738771843367,-263.67,9.245e-05,2]
[351737588,1738771843381,-452.80433148,9.245e-05,2]
[351737589,1738771843392,-913.2,9.245e-05,2]
[351737590,1738771843404,-500.0,9.245e-05,2]
[351737591,1738771843416,-405.18,9.245e-05,2]
[351737592,1738771843427,-500.0,9.245e-05,2]
[351737593,1738771843438,-500.0,9.245e-05,2]
[351737594,1738771843449,-500.0,9.245e-05,2]
[351737595,1738771843461,-500.0,9.245e-05,2]
[351737596,1738771843471,-500.0,9.245e-05,2]
[351737597,1738771843483,-591.54,9.245e-05,2]
[351737598,1738771843493,-3174.66,9.245e-05,2]
[351737599,1738771843504,-500.0,9.245e-05,2]
[351737600,1738771843515,-500.0,9.245e-05,2]
[351737601,1738771843526,-973.6,9.245e-05,2]
[351737602,1738771843538,-558.48,9.245e-05,2]
[351737603,1738771843549,-500.0,9.245e-05,2]
[351737604,1738771843566,-1294.06,9.245e-05,2]
[351737605,1738771843577,-1258.85,9.245e-05,2]
[351737606,1738771843587,-8743.33,9.245e-05,2]
[351737607,1738771843599,-500.0,9.245e-05,2]
[351737608,1738771843612,-500.0,9.245e-05,2]
[351737609,1738771843623,-500.0,9.245e-05,2]
[351737610,1738771843635,-237.33646416,9.245e-05,2]
[351737611,1738771843647,-500.0,9.245e-05,2]
[351737612,1738771843658,-500.0,9.245e-05,2]
[351737613,1738771843669,-500.0,9.245e-05,2]
[351737614,1738771843680,-500.0,9.245e-05,2]
[351737617,1738771843692,-500.0,9.245e-05,2]
[351737619,1738771843702,-527.89,9.246e-05,2]
[351737621,1738771843713,-500.0,9.246e-05,2]
[351737622,1738771843723,-500.0,9.246e-05,2]
[351737623,1738771843733,-366.14,9.246e-05,2]
[351737624,1738771843744,-500.0,9.246e-05,2]
[351737625,1738771843755,-500.0,9.246e-05,2]
[351737626,1738771843765,-547.44,9.246e-05,2]
[351737627,1738771843778,-421.07,9.246e-05,2]
[351737628,1738771843788,-500.0,9.246e-05,2]
[351737630,1738771843799,-287.44,9.246e-05,2]
[351737631,1738771843812,-500.0,9.246e-05,2]
[351737633,1738771843822,-500.0,9.246e-05,2]
[351737635,1738771843833,-500.0,9.246e-05,2]
[351737637,1738771843843,-500.0,9.246e-05,2]
[351737639,1738771843853,-500.0,9.246e-05,2]
[351737641,1738771843863,-500.0,9.246e-05,2]
[351737643,1738771843874,-500.0,9.246e-05,2]
[351737645,1738771843884,-500.0,9.246e-05,2]
[351737647,1738771843894,-500.0,9.246e-05,2]
[351737649,1738771843905,-500.0,9.246e-05,2]
[351737651,1738771843915,-506.1,9.246e-05,2]
[351737653,1738771843925,-577.12,9.246e-05,2]
[351737655,1738771843936,-500.0,9.246e-05,2]
[351737657,1738771843946,-626.94,9.246e-05,2]
[351737659,1738771843957,-500.0,9.246e-05,2]
[351737661,1738771843967,-174.43,9.246e-05,2]
[351737664,1738771843978,-500.0,9.246e-05,2]
[351737666,1738771843989,-526.3,9.246e-05,2]
[351737668,1738771843999,-544.88,9.246e-05,2]
[351737670,1738771844009,-500.0,9.246e-05,2]
[351737672,1738771844020,-500.0,9.246e-05,2]
[351737674,1738771844031,-500.0,9.246e-05,2]
[351737676,1738771844041,-431.77,9.246e-05,2]
[351737678,1738771844051,-186.7,9.246e-05,2]
[351737680,1738771844063,-500.0,9.246e-05,2]
[351737682,1738771844073,-345.49,9.246e-05,2]
[351737684,1738771844083,-500.0,9.246e-05,2]
[351737686,1738771844093,-500.0,9.246e-05,2]
[351737689,1738771844103,-500.0,9.246e-05,2]
[351737691,1738771844113,-500.0,9.246e-05,2]
[351737693,1738771844124,-250.11,9.246e-05,2]
[351737695,1738771844134,-500.0,9.246e-05,2]
[351737697,1738771844145,-500.0,9.246e-05,2]
[351737699,1738771844156,-500.0,9.246e-05,2]
[351737701,1738771844167,-500.0,9.246e-05,2]
[351737703,1738771844178,-210.33,9.246e-05,2]
[351737705,1738771844188,-500.0,9.246e-05,2]
[351737707,1738771844198,-171.98,9.246e-05,2]
[351737709,1738771844210,-500.0,9.246e-05,2]
[351737712,1738771844221,-500.0,9.246e-05,2]
[351737714,1738771844232,-500.0,9.246e-05,2]
[351737716,1738771844242,-547.58,9.246e-05,2]
[351737718,1738771844252,-212.81,9.246e-05,2]
[351737720,1738771844263,-228.67,9.246e-05,2]
[351737722,1738771844273,-500.0,9.246e-05,2]
[351737724,1738771844284,-500.0,9.246e-05,2]
[351737726,1738771844295,-500.0,9.246e-05,2]
[351737728,1738771844306,-500.0,9.246e-05,2]
[351737730,1738771844318,-500.0,9.246e-05,2]
[351737732,1738771844329,-500.0,9.246e-05,2]
[351737735,1738771844340,-500.0,9.246e-05,2]
[351737737,1738771844350,-500.0,9.246e-05,2]
[351737739,1738771844361,-500.0,9.246e-05,2]
[351737741,1738771844372,-500.0,9.246e-05,2]
[351737743,1738771844386,-517.6,9.246e-05,2]
[351737745,1738771844397,-686.43,9.246e-05,2]
[351737747,1738771844408,-500.0,9.246e-05,2]
[351737749,1738771844418,-500.0,9.246e-05,2]
[351737751,1738771844428,-500.0,9.246e-05,2]
[351737753,1738771844438,-500.0,9.246e-05,2]
[351737755,1738771844448,-500.0,9.246e-05,2]
[351737757,1738771844460,-206.84,9.246e-05,2]
[351737759,1738771844470,-500.0,9.246e-05,2]
[351737761,1738771844480,-443.94,9.246e-05,2]
[351737763,1738771844491,-500.0,9.246e-05,2]
[351737765,1738771844500,-500.0,9.246e-05,2]
[351737768,1738771844510,-500.0,9.246e-05,2]
[351737770,1738771844520,-405.55,9.246e-05,2]
[351737772,1738771844530,-500.0,9.246e-05,2]
[351737774,1738771844540,-885.56,9.246e-05,2]
[351737776,1738771844550,-500.0,9.246e-05,2]
[351737778,1738771844562,-500.0,9.246e-05,2]
[351737780,1738771844573,-600.4,9.246e-05,2]
[351737782,1738771844583,-500.0,9.246e-05,2]
[351737784,1738771844592,-400.94,9.246e-05,2]
[351737786,1738771844603,-158.26,9.246e-05,2]
[351737788,1738771844613,-560.14,9.246e-05,2]
[351737790,1738771844623,-500.0,9.246e-05,2]
[351737792,1738771844634,-500.0,9.246e-05,2]
[351737794,1738771844645,-500.0,9.246e-05,2]
[351737796,1738771844655,-500.0,9.246e-05,2]
[351737798,1738771844665,-500.0,9.246e-05,2]
[351737800,1738771844676,-500.0,9.246e-05,2]
[351737802,1738771844687,-518.57,9.246e-05,2]
[351737804,1738771844697,-534.28,9.246e-05,2]
[351737807,1738771844706,-525.08,9.246e-05,2]
[351737809,1738771844717,-1412.21,9.246e-05,2]
[351737811,1738771844736,-500.0,9.246e-05,2]
[351737813,1738771844746,-500.0,9.246e-05,2]